bitfinex-derivatives/quotes_ETHF0:USTF0_20251226
["timestamp","ask_amount","ask_price","bid_price","bid_amount"]
[1766786219764,0.17925286,2928.9,2927.2,5.96261572]
[1766786219963,0.00841286,2928.9,2927.5,0.17092]
[1766786220169,0.17081,2929.5,2927.3,3.72617891]
[1766786220359,0.17081,2929.5,2927.6,4.518484]
[1766786220672,1.35942819,2929.5,2927.6,0.17092]
[1766786220959,1.35942819,2929.5,2927.7,4.43396526]
[1766786221164,0.00512172,2928.8,2928.3,0.00512172]
[1766786227669,0.00512172,2928.8,2928.3,2.172e-05]
[1766786236372,0.17597172,2928.8,2927.3,1.34738337]
[1766786236769,0.17597172,2928.8,2927.4,4.42413443]
[1766786237073,1.30633271,2928.8,2927.4,4.42413443]
[1766786238373,0.17087,2928.5,2927.2,0.0028924]
[1766786240178,1.27806263,2928.5,2927.2,0.0028924]
[1766786240579,0.17087,2928.5,2927.2,0.0028924]
[1766786243077,1.27013221,2928.5,2927.2,0.0028924]
[1766786243280,1.29291097,2928.5,2927.2,0.0028924]
[1766786243470,0.17087,2928.5,2927.2,0.0028924]
[1766786252276,0.17087,2928.5,2927.3,4.47267475]
[1766786268996,0.17087,2928.5,2927.4,8.948]
[1766786269896,0.17087,2928.5,2927.2,0.0028924]
[1766786270095,0.17087,2928.5,2927.3,8.95]
[1766786270297,0.17087,2928.5,2927.3,13.41339107]
[1766786273597,0.17087,2928.5,2927.4,8.966]
[1766786280507,0.17087,2928.5,2927.4,8.986]
[1766786284107,1.21518996,2928.8,2927.4,8.986]
[1766786284312,0.17597172,2928.8,2927.4,8.986]
[1766786284601,1.3455409,2928.8,2927.4,8.986]
[1766786284800,1.3455409,2928.8,2927.5,8.998]
[1766786286009,0.17597172,2928.8,2927.5,8.998]
[1766786286208,1.35498651,2928.8,2927.5,8.998]
[1766786287409,1.37047485,2928.8,2927.5,8.998]
[1766786288401,1.35147151,2928.8,2927.5,8.998]
[1766786288600,0.17089,2928.2,2927.2,0.0028924]
[1766786295017,1.38984017,2928.2,2927.2,0.0028924]
[1766786296319,1.38268908,2928.2,2927.2,0.0028924]
[1766786297510,0.17089,2928.2,2927.2,0.0028924]
[1766786297713,1.39566697,2928.2,2927.2,0.0028924]
[1766786307531,0.17089,2928.1,2927.2,0.0028924]
[1766786307830,0.17089,2928.1,2926.4,1.45652508]
[1766786308133,0.17089,2928.1,2926.5,4.41708882]
[1766786308632,0.17089,2928.1,2926.5,4.42135319]
[1766786309929,0.17089,2928.1,2926.6,3.67855566]
[1766786310133,0.17089,2928.1,2926.5,5.88171777]
[1766786310329,0.17089,2928.1,2926.7,4.50608231]
[1766786310629,0.17089,2928.1,2926.6,4.50608231]
[1766786310934,0.17089,2928.1,2926.8,4.50608231]
[1766786311131,0.17089,2928.1,2926.6,4.5227443]
[1766786311332,0.17089,2928.1,2926.5,10.41862895]
[1766786311536,0.17089,2928.1,2926.5,10.58960895]
[1766786311834,0.17089,2928.1,2926.6,4.5227443]
[1766786312933,0.17089,2928.1,2926.6,13.4847443]
[1766786314422,0.17089,2928.1,2926.6,14.92724098]
[1766786314733,0.17089,2928.1,2926.6,13.4847443]
[1766786314930,1.37502313,2928.1,2926.6,14.92724098]
[1766786315335,1.36698921,2928.1,2926.6,14.90306333]
[1766786317739,0.17089,2928.1,2926.6,13.4847443]
[1766786317941,1.34325809,2928.1,2926.6,14.876271]
[1766786318238,0.17089,2928.1,2926.6,13.4847443]
[1766786319239,1.34325809,2928.1,2926.6,14.876271]
[1766786320944,1.3623679,2928.1,2926.6,14.91554656]
[1766786321240,0.1709,2928.0,2926.5,9.00826437]
[1766786321638,0.1709,2928.0,2926.6,4.46669572]
[1766786330250,1.32859911,2928.0,2926.6,4.46669572]
[1766786330655,0.17092,2927.7,2926.5,0.00426437]
[1766786335964,1.17947767,2927.7,2920.6,0.17133]
[1766786336168,0.00512172,2926.8,2924.4,0.27112426]
[1766786336460,0.17098,2926.6,2924.6,4.51182894]
[1766786336757,0.17098,2926.6,2924.7,3.63818375]
[1766786337161,0.1749858,2926.6,2924.7,4.45936052]
[1766786337462,0.1749858,2926.6,2924.8,4.45501205]
[1766786338366,0.1749858,2926.6,2924.7,9.03934847]
[1766786338662,0.1749858,2926.6,2924.8,4.53696417]
[1766786339763,0.1749858,2926.6,2924.7,0.00434847]
[1766786340554,0.17099,2926.4,2924.7,0.00434847]
[1766786341356,0.0040058,2926.6,2924.7,0.00434847]
[1766786341565,0.0040058,2926.6,2923.7,18.34474399]
[1766786342663,1.38118412,2926.0,2923.7,18.34881821]
[1766786342866,0.00512172,2925.1,2923.7,18.34881821]
[1766786345155,0.00512172,2925.1,2923.8,4.3911908]
[1766786345357,0.17102,2925.9,2923.8,8.17847878]
[1766786346458,0.00512172,2925.1,2924.6,0.00512172]
[1766786347166,2.172e-05,2925.1,2924.6,0.00512172]
[1766786370287,2.172e-05,2925.1,2923.7,18.34881821]
[1766786370584,2.172e-05,2925.1,2923.9,4.37030892]
[1766786370986,2.172e-05,2925.1,2923.7,18.34881821]
[1766786371176,2.172e-05,2925.1,2924.1,0.00512171]
[1766786381598,2.172e-05,2925.1,2924.2,9.132]
[1766786394612,2.172e-05,2925.1,2924.3,9.168]
[1766786395018,2.172e-05,2925.1,2924.4,9.168]
[1766786400524,2.172e-05,2925.1,2924.1,0.00512171]
[1766786401021,2.172e-05,2925.1,2924.2,3.589]
[1766786402323,2.172e-05,2925.1,2924.1,0.00512171]
[1766786402524,2.172e-05,2925.1,2924.2,3.593]
[1766786403620,2.172e-05,2925.1,2924.1,0.00512171]
[1766786403825,2.172e-05,2925.1,2924.1,9.16112171]
[1766786404028,2.172e-05,2925.1,2924.1,0.00512171]
[1766786404325,2.172e-05,2925.1,2924.1,9.16112171]
[1766786411430,2.172e-05,2925.1,2924.1,0.00512171]
[1766786411632,2.172e-05,2925.1,2924.2,9.15]
[1766786414133,2.172e-05,2925.1,2924.1,0.00512171]
[1766786414331,2.172e-05,2925.1,2924.2,7.839]
[1766786424141,2.172e-05,2925.1,2924.1,0.00512171]
[1766786425841,0.17108,2924.9,2924.1,0.00512171]
[1766786439442,2.172e-05,2925.1,2924.1,0.00512171]
[1766786443146,1.41075308,2925.5,2924.2,4.3464723]
[1766786444349,0.00512172,2925.1,2924.2,4.3464723]
[1766786445546,1.23971308,2925.5,2924.2,4.3464723]
[1766786446347,0.00512172,2925.1,2924.2,4.3464723]
[1766786446549,0.00512172,2925.1,2924.2,5.69271707]
[1766786447551,7.59130803,2925.9,2924.2,5.69271707]
[1766786448555,0.25690159,2926.0,2924.2,5.69271707]
[1766786448952,0.25690159,2926.0,2924.2,5.86383707]
[1766786449547,0.00512172,2925.4,2924.2,5.86383707]
[1766786449747,2.172e-05,2925.4,2924.2,5.86383707]
[1766786452156,2.172e-05,2925.4,2924.3,9.074]
[1766786452558,2.172e-05,2925.4,2924.4,4.52466205]
[1766786453855,2.172e-05,2925.4,2924.4,4.69577205]
[1766786454251,2.172e-05,2925.4,2924.5,3.7514245]
[1766786454658,2.172e-05,2925.4,2924.6,4.45606042]
[1766786455455,2.172e-05,2925.4,2924.5,4.45606042]
[1766786455658,2.172e-05,2925.4,2924.4,0.17111]
[1766786455957,2.172e-05,2925.4,2924.5,8.03500401]
[1766786456356,2.172e-05,2925.4,2924.5,4.35204696]
[1766786456658,2.172e-05,2925.4,2924.6,9.082]
[1766786457159,2.172e-05,2925.4,2924.7,4.54375356]
[1766786460357,2.172e-05,2925.4,2924.8,9.095]
[1766786460855,2.172e-05,2925.4,2924.9,4.5204188]
[1766786462865,2.172e-05,2925.4,2925.0,9.105]
[1766786463164,2.172e-05,2925.4,2925.1,4.43445316]
[1766786472963,0.08589159,2926.0,2925.1,4.43445316]
[1766786473764,0.00512172,2925.8,2925.1,4.43445316]
[1766786475464,0.08589159,2926.0,2925.1,4.43445316]
[1766786475970,1.17077948,2926.5,2925.1,4.43445316]
[1766786476560,0.0033928,2926.1,2925.1,4.43445316]
[1766786479373,1.17077948,2926.5,2925.1,4.43445316]
[1766786484267,0.0040058,2926.6,2925.1,4.43445316]
[1766786485375,0.0040058,2926.6,2925.2,0.17105]
[1766786485573,0.0040058,2926.6,2925.6,0.00512172]
[1766786485769,0.0040058,2926.6,2925.7,9.168]
[1766786486372,0.0040058,2926.6,2925.8,4.42549867]
[1766786486676,0.0040058,2926.6,2925.8,4.4297884]
[1766786490480,0.0040058,2926.6,2925.9,9.174]
[1766786515203,0.17095,2927.1,2925.9,9.174]
[1766786515708,0.17095,2927.1,2926.0,4.48160907]
[1766786516211,0.17484671,2927.1,2926.0,4.48160907]
[1766786527219,0.17484671,2927.1,2926.1,9.185]
[1766786527415,1.1767961,2927.4,2926.1,9.185]
[1766786528723,1.17958018,2927.4,2926.1,9.185]
[1766786536332,0.00278408,2927.4,2926.2,4.36083631]
[1766786540536,0.00278408,2927.4,2926.3,9.173]
[1766786540841,0.00278408,2927.4,2926.4,4.45935477]
[1766786542841,0.00278408,2927.4,2926.5,9.175]
[1766786543437,0.00278408,2927.4,2926.6,9.176]
[1766786546637,1.11180779,2927.8,2926.7,4.50372045]
[1766786546948,0.17089,2928.2,2926.7,4.50372045]
[1766786547137,0.17089,2928.2,2927.2,0.00512172]
[1766786547439,1.31680066,2928.2,2927.2,0.00512172]
[1766786547636,1.320224,2928.2,2927.2,0.00512172]
[1766786548239,0.17431334,2928.2,2927.2,0.00512172]
[1766786580459,0.17431334,2928.2,2926.7,5.88939707]
[1766786580963,0.17431334,2928.2,2926.7,15.00439707]
[1766786581563,0.00512171,2927.7,2927.2,0.00512172]
[1766786636513,0.00512171,2927.7,2926.0,0.17101]
[1766786636714,0.00512171,2927.7,2926.5,1.35642097]
[1766786636914,0.00512171,2927.7,2926.1,8.648]
[1766786636915,0.00512171,2927.7,2926.3,4.50932871]
[1766786637113,0.00512171,2927.7,2926.5,1.35658831]
[1766786637306,0.00512171,2927.7,2926.5,10.41858831]
[1766786637506,0.00512171,2927.7,2926.8,0.00512172]
[1766786637702,0.00512171,2927.7,2926.5,10.41858831]
[1766786638511,0.00512171,2927.7,2926.5,10.36772568]
[1766786638717,0.00512171,2927.7,2926.8,0.00512172]
[1766786669138,0.17603171,2927.7,2926.8,0.00512172]
[1766786670535,7.51016503,2927.7,2926.8,0.00512172]
[1766786703760,7.51016503,2927.7,2926.8,0.91152021]
[1766786703968,7.33925503,2927.7,2927.1,0.90639849]
[1766786704470,0.94363579,2928.0,2927.4,0.90639849]
[1766786704968,0.96156839,2928.1,2927.4,0.90639849]
[1766786705164,0.00342334,2928.2,2927.4,0.90639849]
[1766786705369,0.00512172,2928.1,2927.4,0.90639849]
[1766786707962,2.172e-05,2928.1,2927.4,0.90639849]
[1766786708668,0.93292768,2928.4,2927.7,0.90639849]
[1766786709565,0.00512172,2928.3,2927.7,0.90639849]
[1766786709764,0.00908491,2928.3,2927.7,0.90639849]
[1766786711865,7.21461839,2928.6,2927.7,0.90639849]
[1766786712761,7.21742605,2928.6,2927.7,0.90639849]
[1766786716973,7.21742605,2928.6,2927.5,0.90639849]
[1766786741988,7.21742605,2928.6,2927.3,1.24728054]
[1766786742184,7.21742605,2928.6,2927.1,8.06952621]
[1766786742384,7.21742605,2928.6,2927.4,4.37040429]
[1766786742590,7.21742605,2928.6,2927.2,4.35256818]
[1766786742889,7.21742605,2928.6,2927.1,7.89857621]
[1766786743084,7.21742605,2928.6,2927.3,4.35256818]
[1766786743290,7.21742605,2928.6,2927.2,4.35256818]
[1766786743491,7.21742605,2928.6,2927.4,4.35428894]
[1766786743994,7.21742605,2928.6,2927.3,0.17094]
[1766786744381,7.21742605,2928.6,2927.4,4.35428894]
[1766786761601,7.21742605,2928.6,2927.5,8.802]
[1766786761801,7.21742605,2928.6,2927.6,8.801]
[1766786762102,7.21742605,2928.6,2927.6,13.21550811]
[1766786762403,7.21742605,2928.6,2927.6,8.801]
[1766786764405,7.21742605,2928.6,2927.3,1.40672299]
[1766786764611,7.21742605,2928.6,2927.4,8.804]
[1766786764813,7.21742605,2928.6,2927.4,13.24025597]
[1766786768514,7.21742605,2928.6,2927.5,8.819]
[1766786774315,7.21742605,2928.6,2927.3,1.24636931]
[1766786774519,7.21742605,2928.6,2927.6,8.831]
[1766786795334,7.21742605,2928.6,2927.3,1.25437777]
[1766786795531,7.21742605,2928.6,2927.4,8.869]
[1766786795728,7.21742605,2928.6,2927.4,13.40078892]
[1766786796035,7.21742605,2928.6,2927.5,8.869]
[1766786796236,7.21742605,2928.6,2927.4,4.53178892]
[1766786796436,7.21742605,2928.6,2927.6,8.87]
[1766786797135,0.95663081,2928.6,2927.6,10.11709954]
[1766786803943,0.95663081,2928.6,2927.6,11.02265861]
[1766786810345,0.95663081,2928.6,2927.6,2.15265861]
[1766786810539,0.95663081,2928.6,2927.7,8.902]
[1766786811643,0.95663081,2928.6,2927.6,2.15265861]
[1766786811844,0.95663081,2928.6,2927.7,8.906]
[1766786821246,0.95663081,2928.6,2927.9,0.90555907]
[1766786821448,0.17082,2929.4,2927.9,0.90909663]
[1766786821645,8.60105214,2929.3,2928.4,0.00512172]
[1766786821948,7.63962238,2929.3,2928.4,0.00512172]
[1766786822451,7.6436552,2929.3,2928.4,0.00512172]
[1766786823145,0.90555907,2929.1,2928.4,0.00512172]
[1766786823446,0.90555907,2929.1,2927.9,0.00353756]
[1766786823447,0.90555907,2928.7,2927.9,0.00353756]
[1766786824246,0.90555907,2928.7,2928.0,0.00512172]
[1766786825345,0.17084,2929.0,2928.0,0.00512172]
[1766786825551,0.90555907,2928.9,2928.0,0.00512172]
[1766786826351,1.07639907,2928.9,2928.0,0.00512172]
[1766786830553,0.17084,2928.9,2928.0,0.00512172]
[1766786830754,1.07639907,2928.9,2928.0,0.00512172]
[1766786839865,0.17085,2928.8,2928.0,0.00512172]
[1766786890816,0.17086,2928.7,2927.4,8.824]
[1766786891615,0.17086,2928.7,2927.8,0.00512172]
[1766786897720,1.01998214,2929.0,2927.4,0.00321247]
[1766786897928,0.17088,2928.4,2926.9,1.1886906]
[1766786898323,1.07823315,2928.4,2926.9,0.11482476]
[1766786898518,0.17088,2928.4,2926.9,0.11482476]
[1766786898825,0.17088,2928.4,2927.4,0.00512172]
[1766786899422,1.07839097,2928.4,2927.4,0.00512172]
[1766786899627,0.17088,2928.4,2927.4,0.00512172]
[1766786899828,1.09279716,2928.4,2927.4,0.00512172]
[1766786901819,0.17088,2928.4,2927.4,0.00512172]
[1766786902027,1.08945397,2928.4,2927.4,0.00512172]
[1766786902726,0.17088,2928.4,2927.4,0.00512172]
[1766786903229,1.07214495,2928.4,2927.4,0.00512172]
[1766786904428,1.07320837,2928.4,2927.4,0.00512172]
[1766786905641,1.09074598,2928.4,2927.4,0.00512172]
[1766786906342,0.17088,2928.4,2927.4,0.00512172]
[1766786906735,1.09074598,2928.4,2927.4,0.00512172]
[1766786907443,1.08583237,2928.4,2927.4,0.00512172]
[1766786908345,1.05868542,2928.4,2927.4,0.00512172]
[1766786908641,0.17088,2928.4,2927.4,0.00512172]
[1766786908839,1.05868542,2928.4,2927.4,0.00512172]
[1766786909844,1.05976456,2928.4,2927.4,0.00512172]
[1766786911942,1.0837355,2928.4,2927.4,0.00512172]
[1766786912343,0.17088,2928.4,2927.4,0.00512172]
[1766786913545,1.0837355,2928.4,2927.4,0.00512172]
[1766786914345,1.06611962,2928.4,2927.4,0.00512172]
[1766786914645,1.07961497,2928.4,2927.4,0.00512172]
[1766786916446,1.08994163,2928.4,2927.4,0.00512172]
[1766786917948,1.0988721,2928.4,2927.4,0.00512172]
[1766786918247,0.17088,2928.4,2927.4,0.00512172]
[1766786918547,1.0988721,2928.4,2927.4,0.00512172]
[1766786920546,1.09281523,2928.4,2927.4,0.00512172]
[1766786922351,1.09944706,2928.4,2927.4,0.00512172]
[1766786923046,0.17088,2928.4,2927.4,0.00512172]
[1766786924049,1.09944706,2928.4,2927.4,0.00512172]
[1766786924249,1.07875412,2928.4,2927.4,0.00512172]
[1766786925348,1.09350592,2928.4,2927.4,0.00512172]
[1766786926551,1.10472244,2928.4,2927.4,0.00512172]
[1766786926953,0.17088,2928.4,2927.4,0.00512172]
[1766786927251,1.10472244,2928.4,2927.4,0.00512172]
[1766786928153,1.08419885,2928.4,2927.4,0.00512172]
[1766786929454,1.1012587,2928.4,2927.4,0.00512172]
[1766786929753,0.17088,2928.4,2927.4,0.00512172]
[1766786929952,1.1012587,2928.4,2927.4,0.00512172]
[1766786930254,0.17088,2928.4,2927.4,0.00512172]
[1766786930454,1.1012587,2928.4,2927.4,0.00512172]
[1766786931555,1.09067135,2928.4,2927.4,0.00512172]
[1766786933056,1.09319592,2928.4,2927.4,0.00512172]
[1766786933351,0.9057189,2928.8,2927.4,0.00512172]
[1766786942959,1.19082214,2929.0,2927.6,0.9057189]
[1766786943862,0.9057189,2928.9,2927.5,0.9057189]
[1766786944851,7.54761982,2928.9,2927.5,0.9057189]
[1766786948161,8.5613394,2928.9,2927.5,0.9057189]
[1766786950967,8.5613394,2928.9,2927.5,2.09972229]
[1766786959770,7.6556205,2928.9,2927.5,2.09972229]
[1766786959975,8.5613394,2928.9,2927.5,2.09972229]
[1766786962775,7.54761982,2928.9,2927.5,2.09972229]
[1766786965479,6.64190092,2928.9,2927.5,2.09972229]
[1766786972383,0.9057189,2928.6,2927.5,1.19400339]
[1766786972585,0.9057189,2928.6,2927.6,8.681]
[1766786973480,0.9057189,2928.6,2927.6,8.682]
[1766786973680,0.9057189,2928.6,2927.5,1.19400339]
[1766786973681,0.9057189,2928.0,2927.1,4.28905933]
[1766786973991,1.91097235,2928.0,2927.1,1.17631124]
[1766786974288,0.9057189,2928.0,2927.1,1.17624593]
[1766786974479,1.00519764,2928.2,2927.0,8.682]
[1766786974678,0.9057189,2928.3,2927.3,0.00512172]
[1766786974878,0.98536511,2928.2,2927.3,0.00512172]
[1766786975290,0.9057189,2928.3,2927.3,0.00512172]
[1766786975484,0.98536511,2928.2,2927.3,0.00512172]
[1766786977086,0.98235552,2928.2,2927.3,0.00512172]
[1766786978089,0.97926047,2928.2,2927.3,0.00512172]
[1766786978288,1.88127304,2928.7,2927.3,0.00512172]
[1766786987891,0.97555414,2928.7,2927.3,0.00512172]
[1766787000816,0.97555414,2928.7,2927.3,8.65912172]
[1766787003319,0.97555414,2928.7,2927.3,0.00512172]
[1766787003510,0.97555414,2928.7,2927.3,8.65612172]
[1766787047051,0.97555414,2928.7,2927.4,4.49711238]
[1766787049958,0.97555414,2928.7,2927.6,0.90552437]
[1766787050554,0.97555414,2928.7,2927.6,2.19117909]
[1766787053256,0.17085,2928.8,2927.6,2.19117909]
[1766787058459,1.08084573,2928.9,2927.6,2.19117909]
[1766787063963,1.08084573,2928.9,2927.6,0.90552437]
[1766787065165,1.08084573,2928.9,2927.6,2.22581319]
[1766787065461,1.08084573,2928.9,2928.2,0.90552437]
[1766787065660,0.46734573,2928.9,2928.3,8.675]
[1766787065860,0.07774573,2928.9,2928.3,8.675]
[1766787066166,0.88147267,2928.9,2928.3,8.675]
[1766787067063,0.76957267,2928.9,2928.3,8.675]
[1766787070260,0.00510001,2929.1,2928.6,0.90552437]
[1766787070463,7.95528128,2929.3,2928.6,0.90552437]
[1766787070656,3.282e-05,2929.3,2928.6,0.90552437]
[1766787071071,3.282e-05,2929.3,2928.8,0.90552437]
[1766787071366,0.00515454,2929.3,2928.9,8.681]
[1766787072868,6.84480964,2929.9,2928.9,8.681]
[1766787073062,6.84480964,2929.9,2928.9,9.89516691]
[1766787073570,6.84480964,2929.9,2928.9,8.681]
[1766787073865,0.00512172,2929.7,2928.9,8.681]
[1766787096180,0.00512172,2929.7,2928.8,0.00512172]
[1766787096379,0.00512172,2929.7,2929.0,8.671]
[1766787096580,0.00512172,2929.7,2929.0,8.67428359]
[1766787096887,0.00512172,2929.7,2929.0,0.00328359]
[1766787097075,0.00512172,2929.7,2929.0,8.67428359]
[1766787097282,0.00512172,2929.7,2929.0,8.67328359]
[1766787115300,0.00512172,2929.7,2929.0,0.00328359]
[1766787115502,0.00512172,2929.7,2929.0,8.66528359]
[1766787117606,0.1708,2929.6,2928.7,8.66]
[1766787117798,6.56082485,2929.6,2928.7,8.66]
[1766787118501,6.56082485,2929.6,2928.9,0.00512172]
[1766787175955,6.39002485,2929.6,2928.9,0.00512172]
[1766787180353,6.39002485,2929.6,2928.9,8.63112172]
[1766787180666,0.00512172,2929.7,2928.9,2.172e-05]
[1766787182256,0.00512172,2929.7,2928.3,10.02493369]
[1766787182257,0.90493918,2929.2,2928.3,10.02493369]
[1766787182463,0.90493918,2929.2,2928.4,8.627]
[1766787182660,0.90493918,2928.9,2927.6,1.43202286]
[1766787182856,0.17082,2929.4,2928.0,11.08221502]
[1766787183257,1.11159886,2929.4,2928.1,4.46981088]
[1766787183455,1.11159886,2929.4,2928.5,0.00512172]
[1766787183960,0.90493918,2929.2,2928.5,0.00512172]
[1766787185661,0.90493918,2928.9,2928.1,0.00277817]
[1766787185864,0.90493918,2929.1,2928.1,8.63277817]
[1766787186663,0.90493918,2929.1,2928.3,0.00512172]
[1766787190367,0.90493918,2929.1,2928.1,0.00277817]
[1766787190963,0.90493918,2928.7,2928.0,8.91740094]
[1766787191161,0.90493918,2928.7,2928.0,8.49090094]
[1766787191565,0.90493918,2928.7,2928.1,0.0033928]
[1766787191869,0.90493918,2928.7,2928.1,0.00733758]
[1766787192475,0.90493918,2928.7,2928.0,8.37220094]
[1766787192677,0.90493918,2928.7,2928.0,8.25350094]
[1766787193473,0.90493918,2928.7,2928.0,8.25698862]
[1766787195576,0.90493918,2928.7,2928.0,5.1843253]
[1766787195778,0.90493918,2928.7,2928.0,5.0655253]
[1766787195972,0.90493918,2928.4,2927.3,1.13900495]
[1766787196277,0.00512172,2928.2,2927.5,8.656]
[1766787196864,0.00512172,2928.2,2927.5,8.65925014]
[1766787198183,0.00512172,2928.2,2927.5,0.00325014]
[1766787198373,0.00512172,2928.2,2927.5,8.66525014]
[1766787198769,0.00512172,2928.2,2927.5,0.00325014]
[1766787201976,0.00512172,2928.2,2927.3,8.84813945]
[1766787201977,0.90493918,2928.1,2927.3,8.84813945]
[1766787202184,1.86536136,2928.1,2927.3,8.84813945]
[1766787202385,0.90493918,2928.1,2927.3,8.84813945]
[1766787203176,0.90493918,2928.1,2927.3,8.85056299]
[1766787203677,0.17601172,2928.2,2927.3,8.85056299]
[1766787204072,0.17601172,2928.2,2927.3,0.00242354]
[1766787204282,0.93644655,2928.1,2927.3,0.00242354]
[1766787204580,0.93644655,2928.1,2927.3,0.90736272]
[1766787205276,0.00512172,2928.2,2927.3,0.90736272]
[1766787205776,0.00512172,2928.2,2927.3,0.00242354]
[1766787205978,0.00512172,2928.2,2927.4,8.681]
[1766787215885,0.00512172,2928.2,2927.3,0.00242354]
[1766787216086,0.00512172,2928.2,2927.3,8.70542354]
[1766787219387,0.90493918,2928.0,2927.3,0.00242354]
[1766787222088,0.90493918,2927.8,2927.3,0.00242354]
[1766787222387,0.90934504,2927.8,2927.3,0.00242354]
[1766787224290,0.90934504,2927.8,2927.2,1.14116753]
[1766787224487,0.90934504,2927.8,2926.9,8.99832712]
[1766787224789,1.83963968,2927.8,2926.9,8.99832712]
[1766787225186,0.00440586,2927.8,2926.9,0.00276887]
[1766787225390,0.90493918,2927.6,2926.9,0.00276887]
[1766787226682,0.90934504,2927.8,2926.9,0.00276887]
[1766787232298,0.90493918,2927.6,2926.9,0.00276887]
[1766787233886,1.16121377,2927.8,2926.9,0.00276887]
[1766787234797,0.17531586,2927.8,2926.9,0.00276887]
[1766787237398,1.16409928,2927.8,2926.9,0.00276887]
[1766787238395,0.17092,2927.7,2926.2,1.19826567]
[1766787238697,1.07733321,2927.6,2926.2,1.19826567]
[1766787239198,1.07733321,2927.6,2926.2,1.20216847]
[1766787239797,1.07733321,2927.6,2926.2,0.0039028]
[1766787241198,2.06335355,2927.6,2926.2,0.0039028]
[1766787243286,0.17093,2927.5,2926.2,0.0039028]
[1766787254809,0.17096,2927.0,2926.2,0.0039028]
[1766787255100,0.17096,2926.9,2925.3,8.665]
[1766787255299,0.00512172,2926.4,2925.3,8.665]
[1766787255500,0.00512172,2926.4,2925.4,4.36209578]
[1766787256001,0.00512172,2926.4,2925.4,4.36516226]
[1766787258004,0.00512172,2926.4,2925.4,0.00306648]
[1766787258201,0.171,2926.2,2924.4,0.17111]
[1766787258505,0.171,2926.2,2924.6,4.43960327]
[1766787258703,0.171,2926.2,2924.6,5.74355226]
[1766787258904,0.171,2926.2,2924.6,1.30394899]
[1766787259206,1.25570632,2926.2,2924.7,4.43960327]
[1766787259607,1.25570632,2926.2,2924.6,4.5313354]
[1766787259809,1.25570632,2926.2,2924.5,8.6907347]
[1766787260011,1.25570632,2926.2,2924.7,4.5313354]
[1766787260505,1.25570632,2926.2,2924.5,8.6907347]
[1766787261011,1.25570632,2926.2,2924.7,4.36307269]
[1766787261211,1.25570632,2926.2,2924.6,4.36307269]
[1766787261507,1.25570632,2926.2,2924.5,8.6907347]
[1766787261698,1.25570632,2926.2,2924.6,4.44832778]
[1766787277434,0.17101,2926.1,2924.6,4.44832778]
[1766787283539,0.17101,2926.1,2924.6,13.14032778]
[1766787283839,0.17101,2926.1,2924.6,13.13932778]
[1766787284035,0.17101,2926.1,2924.6,4.44832778]
[1766787284332,0.17101,2926.1,2924.6,13.13932778]
[1766787284535,0.17101,2926.1,2924.6,4.44832778]
[1766787284828,1.08470632,2926.2,2924.6,13.13932778]
[1766787285031,0.17101,2926.0,2924.6,4.44832778]
[1766787285338,0.17101,2926.0,2924.6,13.13832778]
[1766787286440,0.17101,2926.0,2924.6,4.44832778]
[1766787286733,0.17101,2926.0,2924.6,13.13732778]
[1766787295941,0.17101,2926.0,2924.7,0.90730719]
[1766787296343,0.17101,2926.0,2924.8,4.51882256]
[1766787298743,1.07831719,2926.0,2924.8,4.51882256]
[1766787299347,0.90730719,2925.8,2924.8,4.51882256]
[1766787300548,1.07831719,2926.0,2924.8,4.51882256]
[1766787302348,0.90730719,2925.8,2924.5,0.0037347]
[1766787302545,0.90730719,2925.8,2924.6,8.689]
[1766787302745,0.90730719,2925.8,2924.6,4.42954533]
[1766787303649,1.07831719,2926.0,2924.6,4.42954533]
[1766787304342,0.17101,2926.0,2924.8,0.90730719]
[1766787309657,0.17101,2926.0,2924.8,2.35302033]
[1766787310761,1.14494951,2926.4,2925.5,0.90730719]
[1766787311155,1.14494951,2926.4,2925.3,9.58430719]
[1766787312254,0.00512172,2926.4,2925.3,9.58430719]
[1766787312452,2.172e-05,2926.4,2925.6,0.0051]
[1766787312853,2.172e-05,2926.4,2925.7,0.90730719]
[1766787314364,2.172e-05,2926.4,2925.6,0.0051]
[1766787315862,2.172e-05,2926.4,2925.7,0.90730719]
[1766787317554,2.172e-05,2926.4,2925.9,0.90730719]
[1766787317759,1.24685351,2927.2,2925.9,0.90730719]
[1766787317961,1.24685351,2927.2,2926.0,4.42808279]
[1766787318166,1.24685351,2927.2,2926.0,5.33538998]
[1766787318371,1.24685351,2927.2,2926.0,0.90730719]
[1766787318571,1.24685351,2927.2,2926.1,4.48830413]
[1766787318766,0.00512172,2926.9,2926.1,4.48830413]
[1766787319473,2.172e-05,2926.9,2926.1,4.48830413]
[1766787321571,0.98602034,2927.6,2926.6,0.90730719]
[1766787321873,0.98602034,2927.6,2926.6,0.91113178]
[1766787322672,0.00512172,2927.4,2926.6,0.91113178]
[1766787322870,2.172e-05,2927.4,2926.6,0.00382459]
[1766787323069,2.172e-05,2927.4,2926.6,0.91113178]
[1766787328773,2.172e-05,2927.4,2926.6,0.00382459]
[1766787328983,2.172e-05,2927.4,2926.6,0.91113178]
[1766787329682,2.172e-05,2927.4,2926.6,0.00382459]
[1766787363225,2.172e-05,2927.4,2925.9,1.40440143]
[1766787363226,0.17095,2927.2,2925.9,1.40440143]
[1766787364221,0.17095,2927.2,2925.9,1.40776716]
[1766787379747,2.172e-05,2927.4,2926.0,4.36710013]
[1766787379953,1.21985351,2927.4,2926.0,4.36710013]
[1766787380445,2.172e-05,2927.4,2926.0,4.36710013]
[1766787388456,2.172e-05,2927.4,2926.1,8.556]
[1766787388754,2.172e-05,2927.4,2926.2,4.51377703]
[1766787406966,2.172e-05,2927.4,2926.2,5.41997487]
[1766787407367,2.172e-05,2927.4,2926.2,5.59097487]
[1766787417974,2.172e-05,2927.4,2926.7,0.90611912]
[1766787418168,2.172e-05,2927.4,2926.7,9.52311912]
[1766787420473,2.172e-05,2927.4,2926.7,9.52211912]
[1766787421680,2.172e-05,2927.4,2926.7,8.62]
[1766787428592,2.172e-05,2927.4,2926.4,0.90611912]
[1766787428793,2.172e-05,2927.4,2926.5,8.62]
[1766787428995,2.172e-05,2927.4,2926.5,13.15686579]
[1766787436400,2.172e-05,2927.4,2926.6,8.64]
[1766787471725,9.24671141,2927.6,2926.6,8.64]
[1766787472726,0.00512172,2927.4,2926.6,8.64]
[1766787498742,0.00512172,2927.4,2926.3,1.44157899]
[1766787498942,0.00512172,2927.4,2926.4,8.681]
[1766787499136,0.00512172,2927.4,2926.4,13.12217564]
[1766787499444,0.00512172,2927.4,2926.4,13.12117564]
[1766787499741,0.00512172,2927.4,2926.4,13.12017564]
[1766787515964,0.00212172,2927.4,2926.4,13.12017564]
[1766787542083,0.00212172,2927.4,2926.4,14.02641508]
[1766787543690,2.172e-05,2927.4,2926.7,0.90623944]
[1766787543987,0.00440586,2927.8,2926.8,8.819]